[Event "Titled Tuesday Blitz February 07 Late 2023"]
[White "Jones, Gawain C B"]
[Black "Godzwon, Iwo"]
[WhiteFideId "409561"]
[BlackFideId "21802483"]
[WhiteElo "2618"]
[BlackElo "2394"]
[Result "0-1"]
[Round "05"]
[TimeControl "180+2"]
[Date "2023.02.07"]
[WhiteClock "0:00:02"]
[BlackClock "0:00:42"]

1. e4 {[%clk 0:03:00]}  c5 {[%clk 0:02:55]} 2. Nc3 {[%clk 0:03:00]}  e6 {[%clk 0:02:55]} 3. Nf3 {[%clk 0:02:58]}  Nc6 {[%clk 0:02:54]} 4. Bb5 {[%clk 0:02:57]}  Nge7 {[%clk 0:02:53]} 5. d4 {[%clk 0:02:57]}  cxd4 {[%clk 0:02:53]} 6. Nxd4 {[%clk 0:02:58]}  a6 {[%clk 0:02:54]} 7. Be2 {[%clk 0:02:55]}  Nxd4 {[%clk 0:02:54]} 8. Qxd4 {[%clk 0:02:55]}  Nc6 {[%clk 0:02:55]} 9. Qd3 {[%clk 0:02:53]}  Be7 {[%clk 0:02:55]} 10. Bf4 {[%clk 0:02:49]}  d6 {[%clk 0:02:55]} 11. O-O-O {[%clk 0:02:44]}  e5 {[%clk 0:02:16]} 12. Be3 {[%clk 0:02:44]}  Be6 {[%clk 0:02:16]} 13. Nd5 {[%clk 0:02:44]}  Bxd5 {[%clk 0:02:15]} 14. exd5 {[%clk 0:02:41]}  Nb8 {[%clk 0:02:15]} 15. Qb3 {[%clk 0:02:31]}  Qc7 {[%clk 0:01:54]} 16. Bb6 {[%clk 0:02:27]}  Qc8 {[%clk 0:01:54]} 17. Qa4+ {[%clk 0:02:22]}  Nd7 {[%clk 0:01:51]} 18. Bg4 {[%clk 0:02:22]}  Bd8 {[%clk 0:01:47]} 19. Bxd8 {[%clk 0:02:13]}  b5 {[%clk 0:01:37]} 20. Qb4 {[%clk 0:02:07]}  Qxd8 {[%clk 0:01:35]} 21. Qxd6 {[%clk 0:02:07]}  Qg5+ {[%clk 0:01:35]} 22. f4 {[%clk 0:01:48]}  Qxf4+ {[%clk 0:01:33]} 23. Kb1 {[%clk 0:01:40]}  Qxg4 {[%clk 0:01:33]} 24. Rhe1 {[%clk 0:01:12]}  Qg6 {[%clk 0:01:32]} 25. Qb4 {[%clk 0:00:54]}  Qb6 {[%clk 0:01:27]} 26. Rd3 {[%clk 0:00:48]}  f6 {[%clk 0:01:23]} 27. Qg4 {[%clk 0:00:42]}  g6 {[%clk 0:01:20]} 28. d6 {[%clk 0:00:40]}  f5 {[%clk 0:01:11]} 29. Qg5 {[%clk 0:00:39]}  O-O {[%clk 0:01:08]} 30. Qe7 {[%clk 0:00:29]}  Rf7 {[%clk 0:01:07]} 31. Qe6 {[%clk 0:00:29]}  Rd8 {[%clk 0:00:55]} 32. h4 {[%clk 0:00:27]}  Nc5 {[%clk 0:00:55]} 33. Qd5 {[%clk 0:00:05]}  Nxd3 {[%clk 0:00:47]} 34. Qxd3 {[%clk 0:00:06]}  Qxd6 {[%clk 0:00:48]} 35. Qe2 {[%clk 0:00:07]}  e4 {[%clk 0:00:47]} 36. a3 {[%clk 0:00:07]}  Qd2 {[%clk 0:00:43]} 37. Qf1 {[%clk 0:00:07]}  Rc7 {[%clk 0:00:43]} 38. Rc1 {[%clk 0:00:07]}  e3 {[%clk 0:00:44]} 39. g4 {[%clk 0:00:05]}  e2 {[%clk 0:00:44]} 40. Qh1 {[%clk 0:00:03]}  Rxc2 {[%clk 0:00:41]} 41. Rxc2 {[%clk 0:00:01]}  e1=Q+ {[%clk 0:00:41]} 42. Qxe1 {[%clk 0:00:01]}  Qxe1+ {[%clk 0:00:42]} 43. Ka2 {[%clk 0:00:01]}  Qe6+ {[%clk 0:00:42]} 44. b3 {[%clk 0:00:02]}  Rd3 {[%clk 0:00:42]} 0-1


[Site "https://www.chess.com"]

[Event "Titled Tuesday Blitz February 07 Late 2023"]
[White "Pichot, Alan"]
[Black "Koellner, Ruben Gideon"]
[WhiteFideId "110973"]
[BlackFideId "12993093"]
[WhiteElo "2638"]
[BlackElo "2426"]
[Result "1-0"]
[Round "05"]
[TimeControl "180+2"]
[Date "2023.02.07"]
[WhiteClock "0:02:12"]
[BlackClock "0:00:07"]

1. Nf3 {[%clk 0:02:53]}  Nf6 {[%clk 0:02:52]} 2. b3 {[%clk 0:02:51]}  d6 {[%clk 0:02:44]} 3. Bb2 {[%clk 0:02:51]}  e5 {[%clk 0:02:33]} 4. c4 {[%clk 0:02:52]}  Nbd7 {[%clk 0:02:31]} 5. g3 {[%clk 0:02:52]}  Be7 {[%clk 0:02:09]} 6. Bg2 {[%clk 0:02:52]}  c6 {[%clk 0:02:00]} 7. O-O {[%clk 0:02:52]}  O-O {[%clk 0:01:57]} 8. Nc3 {[%clk 0:02:52]}  Re8 {[%clk 0:01:30]} 9. d3 {[%clk 0:02:52]}  Qc7 {[%clk 0:01:20]} 10. Nd2 {[%clk 0:02:53]}  Nf8 {[%clk 0:01:20]} 11. Rc1 {[%clk 0:02:54]}  Be6 {[%clk 0:00:59]} 12. b4 {[%clk 0:02:54]}  a5 {[%clk 0:00:52]} 13. b5 {[%clk 0:02:53]}  N6d7 {[%clk 0:00:47]} 14. a4 {[%clk 0:02:51]}  Nc5 {[%clk 0:00:45]} 15. Nb3 {[%clk 0:02:51]}  Nxb3 {[%clk 0:00:39]} 16. Qxb3 {[%clk 0:02:52]}  c5 {[%clk 0:00:39]} 17. b6 {[%clk 0:02:50]}  Qd7 {[%clk 0:00:37]} 18. Qb5 {[%clk 0:02:46]}  Qxb5 {[%clk 0:00:34]} 19. Nxb5 {[%clk 0:02:47]}  Rab8 {[%clk 0:00:33]} 20. Bc3 {[%clk 0:02:45]}  Bd7 {[%clk 0:00:27]} 21. Bxa5 {[%clk 0:02:44]}  Rec8 {[%clk 0:00:26]} 22. Bc3 {[%clk 0:02:43]}  Bc6 {[%clk 0:00:24]} 23. Na7 {[%clk 0:02:42]}  Re8 {[%clk 0:00:11]} 24. Bxc6 {[%clk 0:02:39]}  bxc6 {[%clk 0:00:11]} 25. a5 {[%clk 0:02:39]}  Bg5 {[%clk 0:00:08]} 26. e3 {[%clk 0:02:38]}  d5 {[%clk 0:00:07]} 27. Nxc6 {[%clk 0:02:37]}  Ra8 {[%clk 0:00:07]} 28. cxd5 {[%clk 0:02:37]}  Nd7 {[%clk 0:00:07]} 29. Kh1 {[%clk 0:02:12]} 1-0


[Site "https://www.chess.com"]

[Event "Titled Tuesday Blitz February 07 Late 2023"]
[White "Demidov, Mikhail"]
[Black "Klose, Eli"]
[WhiteFideId "4197143"]
[BlackFideId "16242955"]
[WhiteElo "2583"]
[BlackElo "1519"]
[Result "1-0"]
[Round "05"]
[TimeControl "180+2"]
[Date "2023.02.07"]
[WhiteClock "0:00:58"]
[BlackClock "0:00:13"]

1. Nf3 {[%clk 0:02:52]}  Nf6 {[%clk 0:02:57]} 2. g3 {[%clk 0:02:52]}  c5 {[%clk 0:02:57]} 3. Bg2 {[%clk 0:02:50]}  Nc6 {[%clk 0:02:58]} 4. O-O {[%clk 0:02:50]}  d6 {[%clk 0:02:57]} 5. d4 {[%clk 0:02:49]}  cxd4 {[%clk 0:02:57]} 6. Nxd4 {[%clk 0:02:50]}  Bd7 {[%clk 0:02:57]} 7. c4 {[%clk 0:02:50]}  g6 {[%clk 0:02:57]} 8. Nc3 {[%clk 0:02:50]}  Bg7 {[%clk 0:02:57]} 9. b3 {[%clk 0:02:47]}  Qa5 {[%clk 0:02:54]} 10. Bb2 {[%clk 0:02:46]}  Qh5 {[%clk 0:02:54]} 11. e3 {[%clk 0:02:42]}  Qxd1 {[%clk 0:02:37]} 12. Rfxd1 {[%clk 0:02:42]}  Nxd4 {[%clk 0:02:38]} 13. exd4 {[%clk 0:02:40]}  Bc6 {[%clk 0:02:35]} 14. d5 {[%clk 0:02:39]}  Bd7 {[%clk 0:02:34]} 15. Re1 {[%clk 0:02:39]}  Kd8 {[%clk 0:02:27]} 16. Ne4 {[%clk 0:02:35]}  Bf5 {[%clk 0:02:14]} 17. Ng5 {[%clk 0:02:27]}  Ke8 {[%clk 0:02:06]} 18. c5 {[%clk 0:02:21]}  h6 {[%clk 0:01:56]} 19. Ne4 {[%clk 0:01:58]}  Bxe4 {[%clk 0:01:48]} 20. Bxe4 {[%clk 0:01:57]}  Kd7 {[%clk 0:01:23]} 21. c6+ {[%clk 0:01:52]}  bxc6 {[%clk 0:01:21]} 22. dxc6+ {[%clk 0:01:52]}  Kc7 {[%clk 0:01:21]} 23. Bxg6 {[%clk 0:01:49]}  e5 {[%clk 0:00:59]} 24. Bxf7 {[%clk 0:01:48]}  Kxc6 {[%clk 0:00:59]} 25. Rac1+ {[%clk 0:01:36]}  Kd7 {[%clk 0:00:58]} 26. f4 {[%clk 0:01:31]}  Rhf8 {[%clk 0:00:41]} 27. fxe5 {[%clk 0:01:29]}  dxe5 {[%clk 0:00:26]} 28. Bxe5 {[%clk 0:01:18]}  Rxf7 {[%clk 0:00:26]} 29. Rc7+ {[%clk 0:01:15]}  Ke6 {[%clk 0:00:24]} 30. Bxf6+ {[%clk 0:01:14]}  Kxf6 {[%clk 0:00:23]} 31. Rf1+ {[%clk 0:01:14]}  Kg6 {[%clk 0:00:24]} 32. Rcxf7 {[%clk 0:01:09]}  Bd4+ {[%clk 0:00:24]} 33. Kg2 {[%clk 0:01:09]}  Re8 {[%clk 0:00:25]} 34. Rd7 {[%clk 0:01:06]}  Bb6 {[%clk 0:00:19]} 35. Rd2 {[%clk 0:01:05]}  Re3 {[%clk 0:00:18]} 36. Rf3 {[%clk 0:01:03]}  Re1 {[%clk 0:00:18]} 37. b4 {[%clk 0:01:01]}  Rb1 {[%clk 0:00:18]} 38. Rb3 {[%clk 0:01:00]}  Rc1 {[%clk 0:00:16]} 39. a4 {[%clk 0:01:00]}  a6 {[%clk 0:00:13]} 40. Rd6+ {[%clk 0:00:58]} 1-0


[Site "https://www.chess.com"]

[Event "Titled Tuesday Blitz February 07 Late 2023"]
[White "Janaszak, Dawid"]
[Black "Harvey, Marcus R"]
[WhiteFideId "1119206"]
[BlackFideId "400092"]
[WhiteElo "2316"]
[BlackElo "2462"]
[Result "1-0"]
[Round "05"]
[TimeControl "180+2"]
[Date "2023.02.07"]
[WhiteClock "0:00:02"]
[BlackClock "0:00:02"]

1. e4 {[%clk 0:03:00]}  c5 {[%clk 0:02:52]} 2. Nc3 {[%clk 0:03:00]}  d6 {[%clk 0:02:52]} 3. f4 {[%clk 0:02:59]}  g6 {[%clk 0:02:52]} 4. Nf3 {[%clk 0:03:00]}  Bg7 {[%clk 0:02:52]} 5. Bc4 {[%clk 0:03:00]}  Nc6 {[%clk 0:02:52]} 6. O-O {[%clk 0:03:00]}  e6 {[%clk 0:02:52]} 7. d4 {[%clk 0:03:00]}  cxd4 {[%clk 0:02:52]} 8. Nb5 {[%clk 0:03:00]}  a6 {[%clk 0:02:53]} 9. Nbxd4 {[%clk 0:02:58]}  Nxd4 {[%clk 0:02:54]} 10. Nxd4 {[%clk 0:02:59]}  Nf6 {[%clk 0:02:53]} 11. f5 {[%clk 0:02:29]}  exf5 {[%clk 0:02:54]} 12. exf5 {[%clk 0:02:27]}  O-O {[%clk 0:02:54]} 13. Bg5 {[%clk 0:02:12]}  d5 {[%clk 0:02:47]} 14. Bb3 {[%clk 0:02:06]}  Qd6 {[%clk 0:02:37]} 15. c3 {[%clk 0:01:50]}  Ne4 {[%clk 0:02:26]} 16. Bf4 {[%clk 0:01:50]}  Qc5 {[%clk 0:02:26]} 17. Be3 {[%clk 0:01:42]}  Qd6 {[%clk 0:02:15]} 18. Qf3 {[%clk 0:01:42]}  Bxd4 {[%clk 0:01:59]} 19. Bxd4 {[%clk 0:01:35]}  Bxf5 {[%clk 0:01:59]} 20. Qe3 {[%clk 0:01:26]}  Rae8 {[%clk 0:01:56]} 21. Qh6 {[%clk 0:01:21]}  f6 {[%clk 0:01:56]} 22. Rad1 {[%clk 0:01:12]}  Nc5 {[%clk 0:01:45]} 23. Rxf5 {[%clk 0:00:41]}  gxf5 {[%clk 0:01:08]} 24. Bc2 {[%clk 0:00:39]}  Ne4 {[%clk 0:01:06]} 25. Rf1 {[%clk 0:00:38]}  Qe6 {[%clk 0:01:03]} 26. Rf3 {[%clk 0:00:33]}  Re7 {[%clk 0:00:58]} 27. Qf4 {[%clk 0:00:31]}  Ng5 {[%clk 0:00:54]} 28. Re3 {[%clk 0:00:30]}  Qf7 {[%clk 0:00:50]} 29. Bxf5 {[%clk 0:00:22]}  Rxe3 {[%clk 0:00:49]} 30. Bxe3 {[%clk 0:00:23]}  Re8 {[%clk 0:00:49]} 31. h4 {[%clk 0:00:20]}  Ne4 {[%clk 0:00:47]} 32. Bd4 {[%clk 0:00:19]}  Qh5 {[%clk 0:00:45]} 33. Bxe4 {[%clk 0:00:14]}  dxe4 {[%clk 0:00:39]} 34. Qxf6 {[%clk 0:00:14]}  Qg6 {[%clk 0:00:39]} 35. Qf4 {[%clk 0:00:08]}  h5 {[%clk 0:00:27]} 36. Be3 {[%clk 0:00:06]}  Re7 {[%clk 0:00:23]} 37. Qb8+ {[%clk 0:00:06]}  Kh7 {[%clk 0:00:23]} 38. Bd4 {[%clk 0:00:06]}  Re8 {[%clk 0:00:16]} 39. Qxb7+ {[%clk 0:00:06]}  Kg8 {[%clk 0:00:16]} 40. Qd7 {[%clk 0:00:05]}  e3 {[%clk 0:00:14]} 41. Qd5+ {[%clk 0:00:04]}  Kh7 {[%clk 0:00:12]} 42. Qd7+ {[%clk 0:00:04]}  Kg8 {[%clk 0:00:12]} 43. Qd5+ {[%clk 0:00:04]}  Kf8 {[%clk 0:00:03]} 44. Bc5+ {[%clk 0:00:03]}  Kg7 {[%clk 0:00:03]} 45. Bd4+ {[%clk 0:00:04]}  Kh6 {[%clk 0:00:02]} 46. Qf3 {[%clk 0:00:02]} 1-0


[Site "https://www.chess.com"]

[Event "Titled Tuesday Blitz February 07 Late 2023"]
[White "Yanchenko, Roman"]
[Black "Czopor, Maciej"]
[WhiteFideId "4137329"]
[BlackFideId "21805431"]
[WhiteElo "2466"]
[BlackElo "2385"]
[Result "1-0"]
[Round "05"]
[TimeControl "180+2"]
[Date "2023.02.07"]
[WhiteClock "0:01:24"]
[BlackClock "0:00:01"]

1. d4 {[%clk 0:03:00]}  d6 {[%clk 0:02:54]} 2. Nf3 {[%clk 0:03:00]}  Nd7 {[%clk 0:02:54]} 3. c4 {[%clk 0:03:01]}  e5 {[%clk 0:02:54]} 4. Nc3 {[%clk 0:03:01]}  g6 {[%clk 0:02:54]} 5. e3 {[%clk 0:03:00]}  Bg7 {[%clk 0:02:54]} 6. Be2 {[%clk 0:03:00]}  Ne7 {[%clk 0:02:54]} 7. O-O {[%clk 0:03:00]}  O-O {[%clk 0:02:54]} 8. b3 {[%clk 0:03:00]}  f5 {[%clk 0:02:54]} 9. dxe5 {[%clk 0:03:00]}  Nxe5 {[%clk 0:02:54]} 10. Bb2 {[%clk 0:03:00]}  N7c6 {[%clk 0:02:40]} 11. Nxe5 {[%clk 0:02:58]}  Nxe5 {[%clk 0:02:40]} 12. Qd2 {[%clk 0:02:49]}  Be6 {[%clk 0:02:29]} 13. Rad1 {[%clk 0:02:48]}  Qf6 {[%clk 0:02:19]} 14. Nd5 {[%clk 0:02:45]}  Qf7 {[%clk 0:02:12]} 15. Nf4 {[%clk 0:02:44]}  Bd7 {[%clk 0:02:09]} 16. Qd5 {[%clk 0:02:41]}  Bc6 {[%clk 0:02:03]} 17. Qxf7+ {[%clk 0:02:37]}  Kxf7 {[%clk 0:02:04]} 18. Rd2 {[%clk 0:02:33]}  a5 {[%clk 0:01:45]} 19. a4 {[%clk 0:02:29]}  Rfe8 {[%clk 0:01:41]} 20. Nd5 {[%clk 0:02:26]}  Bxd5 {[%clk 0:01:41]} 21. cxd5 {[%clk 0:02:26]}  Re7 {[%clk 0:01:31]} 22. Rc1 {[%clk 0:02:24]}  Rc8 {[%clk 0:01:01]} 23. Rdc2 {[%clk 0:02:23]}  c5 {[%clk 0:00:57]} 24. dxc6 {[%clk 0:02:20]}  Rxc6 {[%clk 0:00:57]} 25. Bb5 {[%clk 0:02:10]}  Rxc2 {[%clk 0:00:35]} 26. Rxc2 {[%clk 0:02:11]}  Nc6 {[%clk 0:00:32]} 27. Bxg7 {[%clk 0:02:09]}  Kxg7 {[%clk 0:00:33]} 28. Bxc6 {[%clk 0:02:09]}  bxc6 {[%clk 0:00:34]} 29. Rxc6 {[%clk 0:02:09]}  Rb7 {[%clk 0:00:34]} 30. Rc3 {[%clk 0:02:04]}  Kf6 {[%clk 0:00:34]} 31. Kf1 {[%clk 0:02:04]}  Ke5 {[%clk 0:00:35]} 32. Ke2 {[%clk 0:02:04]}  g5 {[%clk 0:00:32]} 33. Kd3 {[%clk 0:02:03]}  h5 {[%clk 0:00:30]} 34. Kc2 {[%clk 0:02:04]}  h4 {[%clk 0:00:30]} 35. Rc4 {[%clk 0:01:53]}  g4 {[%clk 0:00:23]} 36. g3 {[%clk 0:01:40]}  hxg3 {[%clk 0:00:16]} 37. hxg3 {[%clk 0:01:40]}  Rh7 {[%clk 0:00:17]} 38. Kd3 {[%clk 0:01:37]}  Rh2 {[%clk 0:00:17]} 39. Rf4 {[%clk 0:01:33]}  d5 {[%clk 0:00:16]} 40. Kc3 {[%clk 0:01:33]}  Rh1 {[%clk 0:00:15]} 41. b4 {[%clk 0:01:33]}  axb4+ {[%clk 0:00:09]} 42. Kxb4 {[%clk 0:01:33]}  Rb1+ {[%clk 0:00:06]} 43. Kc5 {[%clk 0:01:33]}  Rc1+ {[%clk 0:00:06]} 44. Kb5 {[%clk 0:01:34]}  Rb1+ {[%clk 0:00:07]} 45. Rb4 {[%clk 0:01:27]}  Rf1 {[%clk 0:00:02]} 46. a5 {[%clk 0:01:25]}  Rxf2 {[%clk 0:00:03]} 47. a6 {[%clk 0:01:25]}  Ra2 {[%clk 0:00:03]} 48. Ra4 {[%clk 0:01:26]}  Rb2+ {[%clk 0:00:04]} 49. Kc6 {[%clk 0:01:26]}  Rc2+ {[%clk 0:00:02]} 50. Kd7 {[%clk 0:01:26]}  Rh2 {[%clk 0:00:01]} 51. a7 {[%clk 0:01:24]}  Rh8 {[%clk 0:00:01]} 52. Kc6 {[%clk 0:01:23]}  Ra8 {[%clk 0:00:01]} 53. Kb7 {[%clk 0:01:23]}  Rd8 {[%clk 0:00:01]} 54. a8=Q {[%clk 0:01:23]}  Rxa8 {[%clk 0:00:01]} 55. Kxa8 {[%clk 0:01:24]} 1-0


[Site "https://www.chess.com"]

[Event "Titled Tuesday Blitz February 07 Late 2023"]
[White "Gadimbayli, Abdulla"]
[Black "Fisher_TheGalactic"]
[WhiteFideId "13404938"]
[WhiteElo "2500"]
[BlackElo "2561"]
[Result "1-0"]
[Round "05"]
[TimeControl "180+2"]
[Date "2023.02.07"]
[WhiteClock "0:00:45"]
[BlackClock "0:00:01"]

1. e4 {[%clk 0:02:54]}  b6 {[%clk 0:02:59]} 2. d4 {[%clk 0:02:54]}  Bb7 {[%clk 0:02:59]} 3. Bd3 {[%clk 0:02:54]}  Nf6 {[%clk 0:02:57]} 4. Nd2 {[%clk 0:02:52]}  e6 {[%clk 0:02:56]} 5. c3 {[%clk 0:02:51]}  d5 {[%clk 0:02:55]} 6. e5 {[%clk 0:02:51]}  Nfd7 {[%clk 0:02:54]} 7. Ndf3 {[%clk 0:02:44]}  c5 {[%clk 0:02:54]} 8. Ne2 {[%clk 0:02:45]}  Nc6 {[%clk 0:02:53]} 9. O-O {[%clk 0:02:45]}  Be7 {[%clk 0:02:53]} 10. a3 {[%clk 0:02:45]}  Qc7 {[%clk 0:02:53]} 11. Be3 {[%clk 0:02:43]}  c4 {[%clk 0:02:52]} 12. Bc2 {[%clk 0:02:43]}  O-O-O {[%clk 0:02:52]} 13. Nf4 {[%clk 0:02:36]}  Kb8 {[%clk 0:02:47]} 14. Nh5 {[%clk 0:02:32]}  g6 {[%clk 0:02:43]} 15. Nf4 {[%clk 0:02:32]}  Rdf8 {[%clk 0:02:37]} 16. Qd2 {[%clk 0:02:19]}  Na5 {[%clk 0:02:32]} 17. Rae1 {[%clk 0:02:16]}  Ka8 {[%clk 0:02:18]} 18. Nh3 {[%clk 0:02:10]}  Ba6 {[%clk 0:02:14]} 19. Bh6 {[%clk 0:02:09]}  Re8 {[%clk 0:02:11]} 20. Nhg5 {[%clk 0:01:57]}  Bxg5 {[%clk 0:02:09]} 21. Nxg5 {[%clk 0:01:57]}  Nb8 {[%clk 0:02:06]} 22. Qf4 {[%clk 0:01:56]}  Re7 {[%clk 0:02:03]} 23. Bg7 {[%clk 0:01:55]}  Rg8 {[%clk 0:01:48]} 24. Bf6 {[%clk 0:01:55]}  Rd7 {[%clk 0:01:49]} 25. Nxh7 {[%clk 0:01:56]}  Nb3 {[%clk 0:01:47]} 26. Ng5 {[%clk 0:01:51]}  Nc6 {[%clk 0:01:44]} 27. h4 {[%clk 0:01:51]}  Kb7 {[%clk 0:01:34]} 28. Re3 {[%clk 0:01:49]}  Nd2 {[%clk 0:01:15]} 29. Rd1 {[%clk 0:01:48]}  Nb3 {[%clk 0:01:15]} 30. Rh3 {[%clk 0:01:46]}  Bb5 {[%clk 0:01:09]} 31. g4 {[%clk 0:01:35]}  Ba4 {[%clk 0:00:55]} 32. Re1 {[%clk 0:01:22]}  Qc8 {[%clk 0:00:13]} 33. Kh2 {[%clk 0:01:18]}  Qf8 {[%clk 0:00:10]} 34. h5 {[%clk 0:01:03]}  gxh5 {[%clk 0:00:11]} 35. gxh5 {[%clk 0:01:04]}  Qh6 {[%clk 0:00:11]} 36. Nxe6 {[%clk 0:01:02]}  Qxf4+ {[%clk 0:00:04]} 37. Nxf4 {[%clk 0:01:03]}  Nxe5 {[%clk 0:00:04]} 38. Rxe5 {[%clk 0:00:58]}  Nd2 {[%clk 0:00:02]} 39. Bxa4 {[%clk 0:00:56]}  Nf1+ {[%clk 0:00:03]} 40. Kh1 {[%clk 0:00:56]}  Rd6 {[%clk 0:00:03]} 41. Nxd5 {[%clk 0:00:50]}  b5 {[%clk 0:00:01]} 42. Bd1 {[%clk 0:00:49]}  Kc6 {[%clk 0:00:01]} 43. Be2 {[%clk 0:00:45]} 1-0


[Site "https://www.chess.com"]

[Event "Titled Tuesday Blitz February 07 Late 2023"]
[White "Ismagilov, Damir"]
[Black "Kosakowski, Jakub"]
[WhiteFideId "34199982"]
[BlackFideId "1185080"]
[WhiteElo "2156"]
[BlackElo "2485"]
[Result "0-1"]
[Round "05"]
[TimeControl "180+2"]
[Date "2023.02.07"]
[WhiteClock "0:00:10"]
[BlackClock "0:00:37"]

1. e4 {[%clk 0:03:00]}  c6 {[%clk 0:02:58]} 2. d4 {[%clk 0:02:59]}  d5 {[%clk 0:02:58]} 3. e5 {[%clk 0:02:59]}  Bf5 {[%clk 0:02:58]} 4. c4 {[%clk 0:02:59]}  e6 {[%clk 0:02:58]} 5. Nc3 {[%clk 0:02:59]}  Bb4 {[%clk 0:02:58]} 6. cxd5 {[%clk 0:02:58]}  cxd5 {[%clk 0:02:57]} 7. Nf3 {[%clk 0:02:53]}  Ne7 {[%clk 0:02:56]} 8. Bg5 {[%clk 0:02:49]}  Nbc6 {[%clk 0:02:54]} 9. Be2 {[%clk 0:02:46]}  h6 {[%clk 0:02:51]} 10. Be3 {[%clk 0:02:44]}  O-O {[%clk 0:02:45]} 11. O-O {[%clk 0:02:43]}  Bg4 {[%clk 0:02:43]} 12. a3 {[%clk 0:02:36]}  Bxc3 {[%clk 0:02:41]} 13. bxc3 {[%clk 0:02:37]}  Rc8 {[%clk 0:02:41]} 14. Rb1 {[%clk 0:02:34]}  Na5 {[%clk 0:02:39]} 15. Bd2 {[%clk 0:02:26]}  b6 {[%clk 0:02:35]} 16. Qa4 {[%clk 0:02:19]}  Nc4 {[%clk 0:02:28]} 17. Bc1 {[%clk 0:01:50]}  Qc7 {[%clk 0:02:11]} 18. Qd1 {[%clk 0:01:30]}  a6 {[%clk 0:01:55]} 19. h3 {[%clk 0:01:27]}  Bf5 {[%clk 0:01:53]} 20. Bd3 {[%clk 0:01:27]}  Bxd3 {[%clk 0:01:53]} 21. Qxd3 {[%clk 0:01:27]}  b5 {[%clk 0:01:52]} 22. Nd2 {[%clk 0:01:18]}  Nxd2 {[%clk 0:01:49]} 23. Bxd2 {[%clk 0:01:18]}  Qc4 {[%clk 0:01:48]} 24. Qxc4 {[%clk 0:01:13]}  Rxc4 {[%clk 0:01:49]} 25. Rb4 {[%clk 0:01:14]}  Rfc8 {[%clk 0:01:48]} 26. Rfb1 {[%clk 0:00:58]}  Kf8 {[%clk 0:01:25]} 27. Rxc4 {[%clk 0:00:58]}  Rxc4 {[%clk 0:01:14]} 28. Rb4 {[%clk 0:00:58]}  Nc6 {[%clk 0:01:11]} 29. Rxc4 {[%clk 0:00:57]}  dxc4 {[%clk 0:01:11]} 30. f4 {[%clk 0:00:52]}  h5 {[%clk 0:01:08]} 31. Kf2 {[%clk 0:00:51]}  g6 {[%clk 0:01:08]} 32. Kf3 {[%clk 0:00:51]}  Ne7 {[%clk 0:01:08]} 33. Ke4 {[%clk 0:00:48]}  Ke8 {[%clk 0:00:59]} 34. g4 {[%clk 0:00:44]}  hxg4 {[%clk 0:00:59]} 35. hxg4 {[%clk 0:00:44]}  Kd7 {[%clk 0:00:59]} 36. Be1 {[%clk 0:00:44]}  Kc6 {[%clk 0:00:59]} 37. Bh4 {[%clk 0:00:29]}  Nd5 {[%clk 0:00:58]} 38. Be1 {[%clk 0:00:30]}  Kb6 {[%clk 0:00:56]} 39. f5 {[%clk 0:00:29]}  gxf5+ {[%clk 0:00:56]} 40. gxf5 {[%clk 0:00:30]}  Ka5 {[%clk 0:00:55]} 41. f6 {[%clk 0:00:21]}  Ka4 {[%clk 0:00:53]} 42. Kf3 {[%clk 0:00:20]}  Kxa3 {[%clk 0:00:53]} 43. Kg4 {[%clk 0:00:21]}  Kb2 {[%clk 0:00:43]} 44. Kh5 {[%clk 0:00:21]}  a5 {[%clk 0:00:43]} 45. Kh6 {[%clk 0:00:20]}  a4 {[%clk 0:00:42]} 46. Kg7 {[%clk 0:00:21]}  a3 {[%clk 0:00:43]} 47. Kxf7 {[%clk 0:00:22]}  a2 {[%clk 0:00:43]} 48. Kxe6 {[%clk 0:00:15]}  Nf4+ {[%clk 0:00:43]} 49. Kf5 {[%clk 0:00:10]}  a1=Q {[%clk 0:00:43]} 50. Kxf4 {[%clk 0:00:10]}  Qxe1 {[%clk 0:00:43]} 51. Kf5 {[%clk 0:00:09]}  Kxc3 {[%clk 0:00:41]} 52. f7 {[%clk 0:00:10]}  Kxd4 {[%clk 0:00:41]} 53. Kg6 {[%clk 0:00:10]}  Qg3+ {[%clk 0:00:40]} 54. Kh7 {[%clk 0:00:10]}  Qh4+ {[%clk 0:00:38]} 55. Kg8 {[%clk 0:00:11]}  Qd8+ {[%clk 0:00:36]} 56. Kh7 {[%clk 0:00:10]}  Kxe5 {[%clk 0:00:36]} 57. f8=Q {[%clk 0:00:10]}  Qxf8 {[%clk 0:00:36]} 58. Kg6 {[%clk 0:00:09]}  c3 {[%clk 0:00:36]} 59. Kh5 {[%clk 0:00:10]}  Qg7 {[%clk 0:00:36]} 60. Kh4 {[%clk 0:00:10]}  Kf4 {[%clk 0:00:37]} 61. Kh3 {[%clk 0:00:10]}  Qg3# {[%clk 0:00:37]} 0-1


[Site "https://www.chess.com"]